bitfinex/quotes_SOLUSD_20251208
["timestamp","ask_amount","ask_price","bid_price","bid_amount"]
[1765197540107,23.57812247,137.57,137.54,2.36320315]
[1765197540277,16.308864,137.55,137.54,0.2]
[1765197540599,23.99721067,137.55,137.54,0.2]
[1765197540799,32.80715559,137.55,137.54,0.2]
[1765197540979,23.99721067,137.55,137.54,0.2]
[1765197541180,32.80715559,137.55,137.54,0.2]
[1765197542495,40.07723919,137.55,137.54,0.2]
[1765197542892,12.10522712,137.55,137.54,0.2]
[1765197544019,7.26961433,137.56,137.54,2.78320315]
[1765197544182,23.5780802,137.57,137.55,2.16320315]
[1765197544382,23.5780802,137.57,137.55,2.58320315]
[1765197544692,23.5780802,137.57,137.55,3.38347272]
[1765197545199,23.5780802,137.57,137.54,4.00347272]
[1765197547503,24.17841027,137.61,137.55,10.65355632]
[1765197547681,4.83277343,137.6,137.55,11.07355632]
[1765197547879,0.69,137.59,137.55,11.07355632]
[1765197548078,5.52277343,137.59,137.56,3.38347272]
[1765197548282,12.79102747,137.59,137.56,3.38347272]
[1765197550784,4.83277343,137.59,137.57,3.38347272]
[1765197550988,12.10041274,137.6,137.57,3.80347272]
[1765197552003,12.79041274,137.6,137.57,3.80347272]
[1765197552312,0.69,137.59,137.56,3.38347272]
[1765197552695,0.69,137.59,137.56,3.80347272]
[1765197553389,5.51877231,137.59,137.56,3.80347272]
[1765197553989,12.78699155,137.59,137.56,3.80347272]
[1765197555513,12.78699155,137.59,137.56,0.42]
[1765197558712,12.78699155,137.59,137.56,3.80347272]
[1765197559515,12.78699155,137.59,137.56,3.38347272]
[1765197560321,0.69,137.58,137.56,3.38347272]
[1765197560626,12.78699155,137.59,137.56,3.38347272]
[1765197561497,0.71,137.58,137.56,3.38347272]
[1765197562197,12.80699155,137.59,137.56,3.38347272]
[1765197562513,0.71,137.58,137.56,3.38347272]
[1765197564023,12.09699155,137.59,137.56,3.38347272]
[1765197564315,12.80699155,137.59,137.56,3.38347272]
[1765197567721,0.71,137.58,137.56,3.38347272]
[1765197568409,12.80699155,137.59,137.56,3.38347272]
[1765197569426,12.80699155,137.59,137.56,10.65299438]
[1765197569931,5.53877231,137.59,137.56,10.65299438]
[1765197570111,0.71,137.59,137.57,3.38347272]
[1765197570317,0.71,137.59,137.56,7.26952166]
[1765197570318,0.71,137.59,137.56,11.07299438]
[1765197571001,7.97799269,137.59,137.56,3.38347272]
[1765197571633,0.71,137.58,137.56,3.38347272]
[1765197572940,7.26799269,137.59,137.56,3.38347272]
[1765197572941,7.97799269,137.59,137.56,3.38347272]
[1765197573138,7.26799269,137.59,137.56,3.38347272]
[1765197573320,0.71,137.58,137.56,3.38347272]
[1765197574738,0.71,137.58,137.56,10.65289259]
[1765197576035,7.97856821,137.58,137.55,7.96]
[1765197576244,7.78181353,137.58,137.55,7.96]
[1765197576541,0.51324532,137.58,137.55,19.22315157]
[1765197576737,0.51324532,137.58,137.56,3.38347272]
[1765197576947,0.51324532,137.58,137.55,19.22315157]
[1765197578835,0.51324532,137.58,137.55,18.61315157]
[1765197579436,7.78184365,137.58,137.55,15.22967885]
[1765197579831,0.71,137.57,137.55,7.26967885]
[1765197580547,0.71,137.57,137.55,6.61238996]
[1765197581071,0.71,137.57,137.54,10.85394857]
[1765197581344,7.9791467,137.57,137.54,10.85394857]
[1765197581637,0.71,137.56,137.54,10.85394857]
[1765197582239,0.71,137.56,137.54,7.47047585]
[1765197582742,0.71,137.56,137.54,0.2]
[1765197582948,7.97963055,137.56,137.54,0.2]
[1765197583144,0.71,137.56,137.54,0.2]
[1765197583326,0.71,137.55,137.54,0.2]
[1765197583526,0.71,137.56,137.54,0.2]
[1765197584459,0.71,137.56,137.54,3.58347272]
[1765197584627,0.71,137.57,137.54,10.85394145]
[1765197584949,0.71,137.56,137.54,10.85394145]
[1765197586528,5.53742343,137.57,137.54,10.85394145]
[1765197586835,0.71,137.56,137.54,10.85394145]
[1765197587949,15.22857334,137.58,137.54,10.85394145]
[1765197588150,7.96,137.58,137.55,11.26351974]
[1765197588329,5.54220295,137.58,137.55,11.26351974]
[1765197590649,5.54220295,137.58,137.56,11.26301221]
[1765197590650,4.83220295,137.58,137.56,11.26301221]
[1765197590826,5.54220295,137.59,137.56,10.65301221]
[1765197591224,0.66,137.58,137.56,10.65301221]
[1765197591448,0.66,137.58,137.54,26.33552811]
[1765197591638,3.38347272,137.57,137.54,0.2]
[1765197591835,13.64214787,137.57,137.54,0.2]
[1765197592150,0.66,137.56,137.54,0.2]
[1765197593656,7.92955527,137.56,137.54,0.2]
[1765197593952,0.66,137.55,137.54,0.2]
[1765197599237,0.66,137.55,137.52,0.2]
[1765197599238,32.91481304,137.55,137.52,0.2]
[1765197599424,8.21478452,137.54,137.52,0.2]
[1765197599629,8.89478452,137.54,137.52,0.2]
[1765197599830,0.68,137.53,137.52,0.2]
[1765197600459,4.8313118,137.54,137.52,0.2]
[1765197600681,0.68,137.53,137.52,0.2]
[1765197601128,20.14455848,137.53,137.52,0.2]
[1765197601328,21.59239756,137.53,137.52,0.2]
[1765197602652,5.5113118,137.53,137.52,0.2]
[1765197602868,16.76108576,137.53,137.52,0.2]
[1765197603156,16.76108576,137.53,137.46,10.65783562]
[1765197603157,12.19341764,137.52,137.46,10.65783562]
[1765197603358,3.38347272,137.51,137.46,10.65783562]
[1765197603654,4.06347272,137.51,137.46,10.65783562]
[1765197603858,0.68,137.5,137.46,11.33783562]
[1765197604738,0.68,137.5,137.46,10.12230245]
[1765197604940,0.68,137.5,137.46,7.9543629]
[1765197605139,0.68,137.5,137.46,10.12230245]
[1765197607039,0.68,137.5,137.47,2.16793955]
[1765197607448,0.68,137.5,137.46,7.9543629]
[1765197607653,0.68,137.5,137.47,2.16793955]
[1765197607905,0.68,137.5,137.47,2.84793955]
[1765197608078,0.68,137.5,137.46,7.2743629]
[1765197608363,26.42986542,137.5,137.45,10.1229948]
[1765197608541,8.64,137.52,137.47,2.16793955]
[1765197608860,0.68,137.51,137.48,2.16793955]
[1765197609057,0.68,137.51,137.48,9.44151127]
[1765197609260,0.68,137.51,137.48,10.12151127]
[1765197609797,0.68,137.51,137.48,7.27357172]
[1765197610017,0.68,137.51,137.48,9.44151127]
[1765197610264,7.95249501,137.51,137.47,7.27421072]
[1765197610564,7.95249501,137.51,137.47,10.12215027]
[1765197610773,0.68,137.5,137.47,10.12215027]
[1765197611767,7.95292685,137.5,137.46,9.44268294]
[1765197611955,7.95292685,137.5,137.46,10.12268294]
[1765197612270,0.68,137.5,137.47,10.12212857]
[1765197612451,0.68,137.51,137.48,2.16793955]
[1765197612651,0.68,137.51,137.48,2.84793955]
[1765197613174,0.68,137.51,137.48,0.68]
[1765197613752,7.95226213,137.51,137.48,7.27375082]
[1765197613963,16.76220705,137.51,137.47,7.96]
[1765197614167,0.68,137.5,137.46,9.44255394]
[1765197614352,0.68,137.5,137.46,10.12255394]
[1765197614767,0.68,137.5,137.47,7.95428672]
[1765197614965,16.308864,137.52,137.49,2.16793955]
[1765197615272,0.68,137.52,137.5,2.16793955]
[1765197615460,0.68,137.52,137.49,2.84793955]
[1765197615776,0.68,137.52,137.49,10.12103187]
[1765197617472,7.95172354,137.52,137.49,7.95309232]
[1765197617677,0.68,137.52,137.49,7.95309232]
[1765197618673,7.95167649,137.52,137.49,7.27309232]
[1765197618871,0.68,137.52,137.49,7.95309232]
[1765197619081,0.68,137.52,137.49,10.12103187]
[1765197619281,7.95172731,137.52,137.49,9.44103187]
[1765197619582,0.68,137.52,137.49,9.44103187]
[1765197619871,7.27135695,137.53,137.49,9.44103187]
[1765197620082,0.68,137.51,137.49,2.16793955]
[1765197620260,0.68,137.51,137.48,7.96]
[1765197620975,0.68,137.51,137.49,7.27320529]
[1765197622460,7.95135695,137.53,137.49,10.16114484]
[1765197622667,0.68,137.52,137.49,10.16114484]
[1765197623166,0.68,137.52,137.49,7.99320529]
[1765197623360,0.68,137.52,137.49,7.27320529]
[1765197623975,0.68,137.52,137.49,9.44114484]
[1765197624273,0.68,137.52,137.49,10.16114484]
[1765197624786,32.21964896,137.54,137.5,2.88793955]
[1765197624985,0.68,137.53,137.5,0.72]
[1765197625360,0.68,137.53,137.49,9.44114484]
[1765197625563,7.95133874,137.53,137.49,10.16114484]
[1765197625973,0.68,137.52,137.49,10.16114484]
[1765197631688,0.68,137.52,137.45,2.16793955]
[1765197631689,18.47680355,137.51,137.45,2.16793955]
[1765197631983,2.16793955,137.48,137.46,7.96]
[1765197633175,2.16793955,137.48,137.46,8.68]
[1765197633376,2.16793955,137.48,137.46,7.96]
[1765197633563,7.27431439,137.47,137.46,7.96]
[1765197634767,7.27431439,137.47,137.45,0.72]
[1765197634968,25.46010037,137.47,137.46,7.96]
[1765197636282,25.46010037,137.47,137.45,0.72]
[1765197636790,0.68,137.46,137.45,7.96]
[1765197638070,0.68,137.46,137.43,2.88793955]
[1765197638071,7.27537286,137.45,137.43,2.88793955]
[1765197638273,7.27537286,137.45,137.44,7.96]
[1765197638785,7.27537286,137.45,137.44,8.68]
[1765197639189,25.46010037,137.47,137.44,8.68]
[1765197639359,25.46010037,137.47,137.45,0.72]
[1765197639969,25.46010037,137.47,137.44,8.68]
[1765197640169,26.14010037,137.47,137.44,10.84793955]
[1765197640775,26.14010037,137.47,137.44,8.68]
[1765197642386,25.46010037,137.47,137.45,0.72]
[1765197645093,26.14010037,137.47,137.45,0.72]
[1765197645493,26.14010037,137.47,137.46,7.96]
[1765197645870,26.14010037,137.47,137.44,2.88793955]
[1765197646068,26.14010037,137.47,137.46,7.96]
[1765197646268,26.14010037,137.47,137.44,2.88793955]
[1765197646467,26.14010037,137.47,137.46,7.96]
[1765197646994,26.14010037,137.47,137.44,2.88793955]
[1765197647292,26.14010037,137.47,137.46,7.96]
[1765197648294,26.14010037,137.47,137.44,2.88793955]
[1765197648472,26.14010037,137.47,137.46,7.96]
[1765197649490,26.14010037,137.47,137.44,2.88793955]
[1765197649796,26.14010037,137.47,137.45,7.96]
[1765197649983,7.27431439,137.47,137.46,2.16793955]
[1765197650187,7.27431439,137.47,137.46,2.88793955]
[1765197651100,18.18126964,137.51,137.46,2.88793955]
[1765197651278,37.03196995,137.55,137.5,2.16793955]
[1765197651475,5.48034483,137.54,137.51,10.81793955]
[1765197652303,0.68,137.53,137.51,10.12793955]
[1765197652478,0.68,137.53,137.47,0.69]
[1765197652671,0.68,137.53,137.49,7.96]
[1765197653098,10.12793955,137.54,137.51,2.16793955]
[1765197653401,0.68,137.54,137.51,2.16793955]
[1765197653898,7.27114084,137.53,137.51,2.16793955]
[1765197654700,7.27114084,137.53,137.51,2.85793955]
[1765197654886,7.27114084,137.53,137.52,2.16793955]
[1765197655201,7.27068917,137.54,137.52,2.85793955]
[1765197655413,7.27068917,137.54,137.53,7.96]
[1765197655698,7.95068917,137.54,137.53,7.96]
[1765197658274,7.27068917,137.54,137.53,7.96]
[1765197659274,7.27026,137.55,137.53,7.96]
[1765197659475,0.68,137.56,137.53,8.66]
[1765197660700,7.9497082,137.56,137.53,8.66]
[1765197660908,23.57809534,137.57,137.53,17.39902243]
[1765197661206,24.23809534,137.57,137.53,18.09902243]
[1765197661402,24.23809534,137.57,137.53,17.39902243]
[1765197661584,24.23809534,137.57,137.54,0.7]
[1765197662408,24.23809534,137.57,137.54,2.86793955]
[1765197662607,38.52097558,137.59,137.53,15.23108288]
[1765197662608,18.84252656,137.59,137.55,2.86793955]
[1765197662824,18.84252656,137.59,137.53,33.40893498]
[1765197662825,0.66,137.61,137.57,2.16793955]
[1765197663109,7.92707613,137.61,137.58,10.82793955]
[1765197663973,0.66,137.6,137.58,10.12793955]
[1765197664179,7.92707613,137.61,137.58,8.66]
[1765197664377,7.92707613,137.61,137.58,10.82793955]
[1765197665506,7.92707613,137.61,137.58,8.66]
[1765197665881,7.92707613,137.61,137.58,7.96]
[1765197666284,7.92707613,137.61,137.58,8.66]
[1765197666703,7.92707613,137.61,137.58,15.92843517]
[1765197667303,7.92707613,137.61,137.58,19.30995922]
[1765197667888,0.66,137.61,137.58,19.30995922]
[1765197668702,0.66,137.61,137.58,18.60995922]
[1765197669406,0.66,137.61,137.58,19.30995922]
[1765197669804,0.66,137.61,137.58,15.92843517]
[1765197671224,7.26657897,137.62,137.59,0.7]
[1765197671394,7.92657897,137.62,137.59,0.7]
[1765197671808,7.92657897,137.62,137.58,15.92843517]
[1765197671809,0.66,137.61,137.58,15.92843517]
[1765197672916,0.66,137.61,137.58,0.7]
[1765197673115,0.66,137.61,137.59,7.96]
[1765197673313,0.66,137.61,137.6,7.96]
[1765197674098,7.9268073,137.62,137.6,7.96]
[1765197674299,0.66,137.61,137.6,7.96]
[1765197674638,0.66,137.61,137.58,0.7]
[1765197674795,0.66,137.61,137.6,7.96]
[1765197676719,7.9268073,137.62,137.6,7.96]
[1765197677024,0.66,137.61,137.6,7.96]
[1765197677819,7.2668073,137.62,137.6,7.96]
[1765197678003,7.26596742,137.63,137.6,7.96]
[1765197678204,7.92596742,137.63,137.6,12.04152405]
[1765197678405,0.66,137.62,137.6,7.96]
[1765197679923,7.26691374,137.61,137.58,0.7]
[1765197680129,7.26691374,137.61,137.59,7.96]
[1765197680329,7.92691374,137.61,137.59,7.96]
[1765197682226,7.92691374,137.61,137.6,7.96]
[1765197683030,0.66,137.61,137.6,7.96]
[1765197683910,0.7,137.61,137.6,7.96]
[1765197684215,7.96691374,137.61,137.6,7.96]
[1765197684423,7.96691374,137.61,137.58,0.7]
[1765197684424,7.96691374,137.61,137.56,10.65091664]
[1765197684607,0.7,137.6,137.57,7.96]
[1765197684808,0.7,137.6,137.57,8.66]
[1765197685026,0.7,137.6,137.57,4.08152405]
[1765197685330,0.7,137.6,137.58,7.96]
[1765197686539,7.96757311,137.6,137.58,7.96]
[1765197686711,7.96706273,137.61,137.58,12.04152405]
[1765197686917,0.7,137.61,137.58,19.30999342]
[1765197687434,0.7,137.61,137.58,12.04152405]
[1765197687816,7.96661888,137.62,137.59,0.7]
[1765197688329,0.7,137.61,137.58,11.34152405]
[1765197688533,0.7,137.61,137.58,12.04152405]
[1765197688733,0.7,137.61,137.58,19.30973417]
[1765197690308,7.96702948,137.61,137.57,7.26888429]
[1765197690506,7.96702948,137.61,137.58,7.96]
[1765197690734,7.96702948,137.61,137.58,11.34152405]
[1765197690943,7.96702948,137.61,137.58,12.04152405]
[1765197691408,7.96702948,137.61,137.58,4.08152405]
[1765197691612,7.96702948,137.61,137.59,7.96]
[1765197691937,7.96702948,137.61,137.6,7.96]
[1765197692736,7.26659737,137.62,137.6,7.96]
[1765197693041,7.96659737,137.62,137.6,7.96]
[1765197693217,7.26659737,137.62,137.6,7.96]
[1765197693413,0.7,137.61,137.6,7.96]
[1765197696943,7.96659737,137.62,137.6,7.96]
[1765197697246,7.26659737,137.62,137.6,7.96]
[1765197697418,0.7,137.61,137.6,7.96]
[1765197698647,0.8,137.66,137.6,19.30873323]
[1765197698946,0.7,137.65,137.61,0.7]
[1765197699246,3.38152405,137.64,137.59,10.64936102]
[1765197699448,3.38152405,137.64,137.6,7.96]
[1765197699747,0.7,137.63,137.6,7.96]
[1765197700240,0.7,137.63,137.6,15.22732984]
[1765197700944,4.80640044,137.64,137.61,3.38152405]
[1765197701242,0.7,137.64,137.61,4.08152405]
[1765197701432,0.7,137.64,137.61,0.7]
[1765197702038,4.80640044,137.65,137.62,7.26638569]
[1765197702246,0.7,137.64,137.63,7.96]
[1765197705945,11.34685389,137.64,137.63,7.96]
[1765197706143,16.15325433,137.64,137.63,7.96]
[1765197707944,5.50640044,137.64,137.63,7.96]
[1765197708144,4.80640044,137.64,137.63,7.96]
[1765197708446,5.50640044,137.64,137.63,7.96]
[1765197710752,16.15364869,137.64,137.6,7.26708004]
[1765197710949,4.08152405,137.64,137.61,15.22689641]
[1765197711151,8.9082147,137.64,137.61,15.87689641]
[1765197712167,5.52669065,137.64,137.61,15.87689641]
[1765197712944,4.82669065,137.64,137.62,0.65]
[1765197714465,8.2082147,137.65,137.62,7.91631377]
[1765197714642,8.8682147,137.65,137.62,7.91631377]
[1765197715333,16.13303862,137.65,137.62,0.65]
[1765197715534,4.82669065,137.64,137.62,0.65]
[1765197716267,8.2082147,137.64,137.62,0.65]
[1765197716467,0.66,137.63,137.6,7.91723085]
[1765197716667,4.04152405,137.63,137.61,7.96]
[1765197717160,0.66,137.63,137.61,7.96]
[1765197717463,3.38152405,137.63,137.61,8.61]
[1765197718262,11.30700778,137.64,137.62,7.96]
[1765197718459,11.30700778,137.64,137.61,0.65]
[1765197718649,11.30700778,137.64,137.62,7.96]
[1765197720755,11.30700778,137.64,137.63,7.96]
[1765197721269,16.1362938,137.64,137.63,7.96]
[1765197722067,16.1362938,137.64,137.6,7.96720927]
[1765197722273,11.30700778,137.64,137.61,0.7]
[1765197722770,11.30700778,137.64,137.62,7.96]
[1765197724281,11.30700778,137.64,137.61,7.96689355]
[1765197724488,11.30700778,137.64,137.62,7.96]
[1765197726779,10.08924451,137.64,137.62,7.96]
[1765197728194,10.08924451,137.64,137.61,7.96689355]
[1765197728362,10.08924451,137.64,137.62,7.96]
[1765197728784,0.66,137.64,137.62,7.96]
[1765197728987,5.48824145,137.64,137.62,7.96]
[1765197729493,0.71,137.63,137.62,7.96]
[1765197731167,2.87376078,137.64,137.62,7.96]
[1765197731491,7.70269993,137.64,137.62,7.96]
[1765197731786,5.53893915,137.64,137.62,7.96]
[1765197734095,7.70269993,137.64,137.62,7.96]
[1765197734791,14.96817934,137.64,137.62,7.96]
[1765197734995,4.82893915,137.63,137.62,7.96]
[1765197735194,4.82893915,137.63,137.61,0.7]
[1765197735379,5.53893915,137.63,137.62,7.96]
[1765197735998,7.70269993,137.63,137.62,7.96]
[1765197737869,6.99269993,137.63,137.62,7.96]
[1765197738191,10.13924019,137.64,137.62,7.96]
[1765197738368,4.83196896,137.63,137.62,7.96]
[1765197739188,4.83196896,137.63,137.61,0.7]
[1765197739391,4.83196896,137.63,137.62,7.96]
[1765197740196,4.83196896,137.63,137.61,0.7]
[1765197740376,4.83196896,137.63,137.62,7.96]
[1765197740777,5.54196896,137.63,137.62,7.96]
[1765197741092,5.54196896,137.63,137.61,0.7]
[1765197741296,5.54196896,137.63,137.62,7.96]
[1765197742176,5.54196896,137.63,137.61,0.7]
[1765197742373,10.14924019,137.64,137.61,0.7]
[1765197742579,5.55562797,137.63,137.62,7.96]
[1765197743499,4.83562797,137.63,137.62,7.96]
[1765197744100,4.83562797,137.63,137.61,0.7]
[1765197744300,4.83744195,137.62,137.61,0.7]
[1765197744504,4.83744195,137.62,137.61,8.66]
[1765197745006,4.83744195,137.62,137.61,0.7]
[1765197745199,4.83744195,137.62,137.61,8.66]
[1765197745706,4.83744195,137.62,137.61,7.96]
[1765197746304,4.83744195,137.62,137.6,7.92725254]
[1765197746606,4.83744195,137.62,137.61,7.96]
[1765197747379,4.83744195,137.62,137.6,7.92725254]
[1765197747597,4.83744195,137.62,137.61,8.62]
[1765197748392,4.83744195,137.62,137.61,0.66]
[1765197748598,4.83744195,137.62,137.61,8.62]
[1765197748908,4.83744195,137.62,137.61,0.66]
[1765197749110,4.83744195,137.62,137.61,8.62]
[1765197751108,4.83744195,137.63,137.61,8.62]
[1765197751409,4.83744195,137.62,137.61,8.62]
[1765197753022,4.83744195,137.62,137.61,0.66]
[1765197753303,6.80222052,137.66,137.61,18.05067452]
[1765197753478,4.83893227,137.65,137.62,2.16376078]
[1765197753678,2.16376078,137.63,137.61,6.54556237]
[1765197753917,23.31121823,137.62,137.57,8.62]
[1765197754084,2.16376078,137.58,137.56,0.66]
[1765197754292,2.16376078,137.59,137.56,8.62]
[1765197754918,2.16376078,137.59,137.57,0.66]
[1765197755418,2.88376078,137.59,137.57,0.66]
[1765197756627,2.16376078,137.59,137.57,0.66]
[1765197757125,9.43176138,137.59,137.57,0.66]
[1765197757419,14.26987809,137.6,137.57,0.66]
[1765197757804,9.43128464,137.6,137.57,0.66]
[1765197758002,9.43128464,137.6,137.52,28.40707056]
[1765197758003,2.16376078,137.58,137.52,12.09820656]
[1765197758210,2.16376078,137.53,137.49,3.79315726]
[1765197758404,7.96,137.58,137.47,21.83008913]
[1765197758405,2.16376078,137.5,137.47,21.83008913]
[1765197758610,9.43648805,137.5,137.49,7.96]
[1765197759223,2.16376078,137.5,137.49,8.62]
[1765197759797,9.4360745,137.51,137.49,8.62]
[1765197760120,9.43538305,137.53,137.5,0.66]
[1765197760300,2.16376078,137.52,137.5,0.66]
[1765197760920,2.88376078,137.51,137.49,7.96]
[1765197761102,2.16376078,137.52,137.5,0.66]
[1765197761310,9.43452605,137.54,137.5,0.66]
[1765197762811,7.96,137.55,137.52,2.16376078]
[1765197763031,7.26902667,137.57,137.53,7.96]
[1765197763329,7.26902667,137.57,137.54,0.66]
[1765197763515,28.32248224,137.59,137.54,2.82376078]
[1765197763720,7.26846726,137.59,137.55,0.66]
[1765197763921,7.26846726,137.59,137.56,7.96]
[1765197764321,7.26846726,137.59,137.56,8.62]
[1765197765143,10.15222804,137.59,137.56,8.62]
[1765197766634,10.12376078,137.6,137.56,8.62]
[1765197766635,17.39137581,137.6,137.57,0.66]
[1765197767348,7.26761503,137.6,137.57,0.66]
[1765197770643,7.98705869,137.61,137.57,7.92896342]
[1765197770937,37.35939031,137.63,137.57,10.0927242]
[1765197771257,2.16376078,137.61,137.54,16.308864]
[1765197771412,7.97648558,137.62,137.55,21.81897523]
[1765197771413,16.308864,137.59,137.55,21.81897523]
[1765197771618,8.80994492,137.58,137.51,15.92181374]
[1765197771830,9.51994492,137.58,137.52,0.69]
[1765197772030,0.71,137.57,137.52,0.69]
[1765197772545,2.16376078,137.54,137.52,0.69]
[1765197773913,2.16376078,137.54,137.52,8.65]
[1765197775227,9.43400433,137.55,137.52,0.69]
[1765197775544,7.98024355,137.55,137.52,8.65]
[1765197775749,10.14400433,137.55,137.52,8.65]
[1765197776251,10.14400433,137.55,137.52,0.69]
[1765197776540,10.14400433,137.55,137.52,8.65]
[1765197777531,2.16376078,137.54,137.52,8.65]
[1765197777832,2.16376078,137.54,137.52,0.69]
[1765197778046,2.16376078,137.54,137.52,8.65]
[1765197778235,10.14400433,137.55,137.52,0.69]
[1765197778547,10.14400433,137.55,137.52,8.65]
[1765197778847,2.16376078,137.54,137.52,0.69]
[1765197779043,2.16376078,137.54,137.52,7.96]
[1765197779544,2.86376078,137.53,137.5,7.98272727]
[1765197780754,2.86376078,137.52,137.49,7.96]
[1765197780957,2.16376078,137.51,137.48,7.98360939]
[1765197781161,2.86376078,137.51,137.48,15.94360939]
[1765197781526,10.1354435,137.52,137.49,0.71]
[1765197781735,2.86376078,137.52,137.48,15.94360939]
[1765197781944,2.16376078,137.53,137.49,0.71]
[1765197782140,2.16376078,137.54,137.49,2.87376078]
[1765197782545,2.16376078,137.54,137.5,0.71]
[1765197782862,2.16376078,137.54,137.51,7.96]
[1765197783351,2.86376078,137.54,137.51,15.9417059]
[1765197784322,0.7,137.54,137.51,15.9417059]
[1765197784643,2.16376078,137.54,137.52,0.71]
[1765197785127,2.16376078,137.54,137.52,7.98162977]
[1765197785334,2.16376078,137.55,137.52,7.98162977]
[1765197785541,2.16376078,137.55,137.52,7.27162977]
[1765197785749,2.16376078,137.55,137.53,0.71]
[1765197786251,2.16376078,137.55,137.52,7.98162977]
[1765197786444,2.16376078,137.56,137.53,0.71]
[1765197787047,2.16376078,137.56,137.54,7.96]
[1765197787256,10.133244,137.57,137.54,7.96]
[1765197787752,41.75877092,137.58,137.54,15.2304989]
[1765197787951,25.44990692,137.58,137.55,0.71]
[1765197788158,18.18117,137.58,137.55,0.71]
[1765197788360,9.43194195,137.59,137.55,0.71]
[1765197788655,11.35046538,137.6,137.55,4.09280644]
[1765197788856,11.35046538,137.6,137.56,0.71]
[1765197789157,11.35046538,137.6,137.57,7.96]
[1765197789337,11.35046538,137.6,137.57,8.67]
[1765197789652,11.35046538,137.6,137.57,7.96]
[1765197790944,3.38280644,137.58,137.54,15.94051959]
[1765197791244,0.7,137.59,137.54,15.94051959]
[1765197791245,3.38280644,137.57,137.54,15.94051959]
[1765197791646,4.08280644,137.57,137.54,15.94051959]
[1765197792562,11.35184299,137.57,137.54,15.94051959]
[1765197793342,11.35184299,137.57,137.54,7.98051959]
[1765197793648,11.35184299,137.57,137.54,15.94051959]
[1765197796542,0.7,137.56,137.54,7.96]
[1765197796953,4.08280644,137.56,137.54,7.96]
[1765197797159,4.08280644,137.56,137.53,7.27096391]
[1765197797350,4.08280644,137.56,137.53,15.94096391]
[1765197801464,11.35246819,137.56,137.53,15.94096391]
[1765197801766,11.34246819,137.56,137.53,15.95096391]
[1765197802259,11.34246819,137.56,137.53,7.99096391]
[1765197802463,10.65246819,137.56,137.53,15.23096391]
[1765197802760,11.34246819,137.56,137.53,15.95096391]
[1765197803336,10.65246819,137.56,137.53,7.96]
[1765197803733,0.69,137.55,137.53,7.96]
[1765197804032,10.65246819,137.56,137.53,7.96]
[1765197804238,0.69,137.55,137.53,7.96]
[1765197806765,11.34296564,137.55,137.53,7.96]
[1765197807144,4.07280644,137.54,137.5,69.1725559]
[1765197807352,3.38280644,137.53,137.51,7.96]
[1765197807553,4.07280644,137.53,137.51,7.96]
[1765197810769,4.07280644,137.53,137.5,7.9925559]
[1765197811146,4.07280644,137.52,137.49,7.27315929]
[1765197811467,3.38280644,137.52,137.5,0.72]
[1765197812889,11.34401049,137.53,137.5,0.72]
[1765197813397,3.38280644,137.52,137.5,0.72]
[1765197815376,11.34401049,137.53,137.5,0.72]
[1765197815711,3.38280644,137.54,137.5,7.99263347]
[1765197816198,3.38280644,137.54,137.51,0.72]
[1765197816498,4.07280644,137.54,137.51,7.99219307]
[1765197817382,11.34344112,137.54,137.51,7.99219307]
[1765197818704,3.38280644,137.55,137.52,8.68]
[1765197818907,4.07280644,137.56,137.52,8.68]
[1765197819108,4.07280644,137.56,137.53,0.72]
[1765197819493,4.07280644,137.55,137.52,8.68]
[1765197819895,11.34296228,137.55,137.52,8.68]
[1765197821083,3.38280644,137.53,137.51,7.96]
[1765197821509,4.07280644,137.53,137.51,7.96]
[1765197821689,11.3439999,137.53,137.51,7.96]
[1765197822020,7.96119346,137.53,137.51,7.96]
[1765197822791,11.3439999,137.53,137.51,7.96]